fUSD/lending_fUSD_20250511
["ID","MTS","AMOUNT","RATE_DAILY","PERIOD"]
[360713859,1746947791490,-215.95880197,0.00017805,2]
[360713860,1746947791525,-27.09013105,0.00017806,2]
[360713861,1746947806045,-317.10282296,0.00017805,2]
[360713862,1746947820986,-182.89717704,0.00017805,2]
[360713863,1746947821021,-17.10282296,0.00017805,2]
[360713864,1746947836047,-256.77431346,0.00017805,2]
[360713865,1746947851527,-250.51791125,0.00017705,2]
[360713866,1746947851561,-50.99470634,0.00017805,2]
[360713867,1746947866047,-175.12815724,0.00017805,2]
[360713868,1746947866081,-167.41014926,0.00017805,2]
[360713869,1746947881002,-159.0,0.00017804,2]
[360713870,1746947881036,-183.5383065,0.00017805,2]
[360713871,1746947881647,-159.0,0.00017804,2]
[360713872,1746947895950,-141.0,0.00017804,2]
[360713873,1746947895973,-69.298042,0.00017805,2]
[360713874,1746947902875,-737.29,0.00020575,30]
[360713875,1746947902912,-300.0,0.00022,30]
[360713876,1746947902953,-823.01,0.000255,30]
[360713877,1746947902995,-498.51056812,0.00028767,30]
[360713878,1746947903034,-900.0,0.00029,30]
[360713879,1746947903071,-500.0,0.00029589,30]
[360713880,1746947903115,-244.67,0.000298,30]
[360713881,1746947903147,-552.83440117,0.000298,30]
[360713882,1746947903190,-179.85,0.000298,31]
[360713883,1746947903231,-179.85,0.000298,31]
[360713884,1746947903273,-179.85,0.000298,31]
[360713885,1746947903313,-179.85,0.000298,31]
[360713886,1746947903356,-179.85,0.000298,31]
[360713887,1746947903391,-594.90506851,0.00029863,35]
[360713888,1746947903428,-260.0,0.0003,30]
[360713889,1746947903469,-900.0,0.0003,31]
[360713890,1746947903508,-455.33682386,0.0003,30]
[360713891,1746947910973,-178.45257602,0.00017805,2]
[360713892,1746947926048,-169.75961356,0.00017804,2]
[360713893,1746947941036,-231.30280941,0.00017804,2]
[360713894,1746947956057,-268.69719059,0.00017803,2]
[360713895,1746947973594,-31.30280941,0.00017803,2]
[360713896,1746947973629,-98.93757703,0.00017804,2]
[360713897,1746947973661,-32.78213556,0.00017804,2]
[360713898,1746947986075,-250.0,0.00017804,2]
[360713913,1746948001030,-217.21786444,0.00017804,2]
[360713914,1746948001068,-32.78213556,0.00017804,2]
[360713915,1746948001663,-250.0,0.00017803,2]
[360713950,1746948016675,-50.0,0.00017803,2]
[360713951,1746948016700,-345.21152637,0.00017803,2]
[360713953,1746948031031,-201.17678277,0.00017803,2]
[360713955,1746948046085,-315.5713177,0.00017802,2]
[360713957,1746948061014,-280.81699144,0.00017802,2]
[360713958,1746948061046,-19.18300856,0.00017802,2]
[360713961,1746948076059,-200.02122182,0.00017801,2]
[360713963,1746948091027,-99.97877818,0.00017801,2]
[360713964,1746948091061,-88.44055217,0.00017802,2]
[360713966,1746948106600,-250.0,0.00017802,2]
[360713968,1746948121050,-142.37643927,0.00017802,2]
[360713969,1746948121082,-18.08356073,0.00017802,2]
[360713971,1746948136523,-251.79378616,0.00017802,2]
[360713973,1746948151033,-230.12265311,0.00017802,2]
[360713974,1746948151067,-21.67113305,0.00017802,2]
[360713976,1746948167804,-285.75816554,0.00017801,2]
[360713977,1746948181024,-214.24183446,0.00017801,2]
[360713978,1746948181057,-35.75816554,0.00017801,2]
[360713980,1746948192052,199.546,0.00030137,120]
[360713981,1746948195974,-300.0,0.000178,2]
[360713984,1746948211075,-167.01194084,0.00017701,2]
[360713985,1746948211109,-130.67712866,0.00017801,2]
[360713986,1746948287746,-335.03454528,0.000176,2]
[360713987,1746948301035,-170.39504816,0.000176,2]
[360713989,1746948347335,-151.85116274,0.0001771,2]
[360714014,1746948361375,-196.55355446,0.0001771,2]
[360714015,1746948362350,4037.812812,8e-05,2]
[360714016,1746948376002,-180.01,0.0001771,2]
[360714017,1746948391031,-161.19,0.0001771,2]
[360714018,1746948406049,-331.8971498,0.0001771,2]
[360714019,1746948421145,241.88943117,0.00017709,2]
[360714020,1746948436000,-278.533951,0.00017709,2]
[360714021,1746948439231,-622.71734983,0.00017709,2]
[360714022,1746948439261,-300.0,0.00017797,2]
[360714023,1746948439301,-162.81675934,0.00017798,2]
[360714024,1746948459639,-337.18324066,0.00017798,2]
[360714025,1746948459676,-500.0,0.00017798,2]
[360714026,1746948459712,-500.0,0.00017798,2]
[360714027,1746948459753,-500.0,0.00017798,2]
[360714028,1746948459794,-500.0,0.00017798,2]
[360714029,1746948459832,-500.0,0.00017798,2]
[360714030,1746948459870,-404.41730438,0.00017798,2]
[360714031,1746948459910,-378.26858937,0.00017798,2]
[360714032,1746948459938,-1200.0,0.00017799,2]
[360714033,1746948459962,-169.0,0.00017799,2]
[360714034,1746948459987,-250.0,0.00017802,2]
[360714035,1746948460016,-250.0,0.00017898,2]
[360714036,1746948460041,-250.0,0.00017983,2]
[360714037,1746948460067,-2007.86,0.00017992,2]
[360714038,1746948460091,-190.21,0.00018049,2]
[360714039,1746948460118,-200.0,0.00018049,2]
[360714040,1746948460143,-167.01194082,0.0001839,2]
[360714041,1746948460168,-494.55,0.00018499,2]
[360714042,1746948461574,151.97,0.00013699,2]
[360714043,1746948463013,325.03,0.00018174,2]
[360714044,1746948475167,2069.05455315,0.0001,2]
[360714045,1746948480372,388.44,0.00018174,2]
[360714049,1746948513150,-635.04,0.00018548,2]
[360714050,1746948513177,-250.0,0.00018568,2]
[360714051,1746948513204,-1228.32,0.00018588,2]
[360714052,1746948513230,-347.75202186,0.000186,2]
[360714053,1746948513256,-328.51131331,0.000186,2]
[360714054,1746948513284,-166.77,0.00018815,2]
[360714055,1746948513315,-300.0,0.00018818,2]
[360714056,1746948513347,-23900.0,0.00018819,2]
[360714057,1746948513374,-928.16,0.00018839,2]
[360714058,1746948513406,-224.26856885,0.000189,2]
[360714059,1746948513433,-300.0,0.000189,6]
[360714060,1746948513460,-172.64,0.00018902,2]
[360714061,1746948513486,-616.07,0.00018913,2]
[360714062,1746948513514,-207.4,0.00018943,2]
[360714063,1746948513544,-507.08,0.00018974,2]
[360714064,1746948513573,-150.0,0.00018986,7]
[360714065,1746948543204,159.71518269,0.00018989,2]
[360714068,1746948560588,1893.571257,0.00018905,2]
[360714069,1746948592890,358.26,0.0001862,2]
[360714070,1746948593904,358.26,0.00025602,120]
[360714071,1746948593944,358.26,0.00027929,120]
[360714075,1746948599005,536.36,0.00018768,2]
[360714087,1746948631847,-370.10586924,0.00019,6]
[360714088,1746948632153,-229.89413076,0.00019,6]
[360714089,1746948632162,-250.0,0.00019039,2]
[360714090,1746948632172,-154.00185799,0.00019078,3]
[360714091,1746948632182,-959.15292374,0.00019078,2]
[360714092,1746948632191,-159.71518269,0.00019078,2]
[360714093,1746948632202,-127.09087731,0.00019089,2]
[360714096,1746948632249,-643.33912269,0.00019089,2]
[360714097,1746948632259,-801.16187291,0.000191,6]
[360714098,1746948632270,-98.83812709,0.000191,6]
[360714099,1746948632279,-959.15292367,0.00019169,2]
[360714101,1746948632289,-1200.0,0.00019172,2]
[360714103,1746948632298,-304.14358234,0.00019173,2]
[360714105,1746948632308,-501.75196777,0.00019173,2]
[360714106,1746948632317,-502.13108564,0.00019173,2]
[360714107,1746948632327,-504.35803671,0.00019173,2]
[360714108,1746948632339,-500.0,0.00019173,2]
[360714109,1746948632349,-300.0,0.00019176,2]
[360714110,1746948632359,-9699.51063739,0.00019177,2]
[360714111,1746948632369,-500.0,0.00019178,2]
[360714112,1746948632378,-500.0,0.00019178,2]
[360714113,1746948632388,-500.0,0.00019178,2]
[360714114,1746948632398,-500.0,0.00019178,2]
[360714115,1746948632407,-500.0,0.00019178,2]
[360714116,1746948632417,-628.02967137,0.00019178,2]
[360714117,1746948632426,-500.0,0.00019178,2]
[360714118,1746948632436,-433.83531441,0.00019178,2]
[360714119,1746948632446,-2041.34790272,0.00019178,2]
[360714120,1746948632456,-500.0,0.00019178,2]
[360714121,1746948632466,-500.0,0.00019178,2]
[360714122,1746948632475,-2041.34790272,0.00019178,2]
[360714123,1746948632485,-500.0,0.00019178,2]
[360714124,1746948632495,-2041.34790272,0.00019178,2]
[360714125,1746948632505,-500.0,0.00019178,2]
[360714126,1746948632515,-500.0,0.00019178,2]
[360714127,1746948632525,-2041.34790272,0.00019178,2]
[360714128,1746948632534,-500.0,0.00019178,2]
[360714129,1746948632544,-2041.34790272,0.00019178,2]
[360714130,1746948632554,-2041.34790272,0.00019178,2]
[360714131,1746948632563,-2041.34790272,0.00019178,2]
[360714132,1746948632580,-2041.34790272,0.00019178,2]
[360714133,1746948632592,-2041.34790272,0.00019178,2]
[360714134,1746948632602,-2041.34790272,0.00019178,2]
[360714135,1746948632612,-2041.34790272,0.00019178,2]
[360714136,1746948632621,-2041.34790272,0.00019178,2]
[360714137,1746948632632,-2041.34790272,0.00019178,2]
[360714138,1746948632643,-2041.34790272,0.00019178,2]
[360714139,1746948632653,-2041.34790272,0.00019178,2]
[360714140,1746948632662,-2041.34790272,0.00019178,2]
[360714141,1746948632672,-2041.34790272,0.00019178,2]
[360714142,1746948632682,-2041.34790272,0.00019178,2]
[360714143,1746948632691,-2041.34790272,0.00019178,2]
[360714144,1746948632700,-2041.34790272,0.00019178,2]
[360714145,1746948632710,-2041.34790272,0.00019178,2]
[360714146,1746948632719,-2041.34790272,0.00019178,2]
[360714147,1746948632729,-2041.34790272,0.00019178,2]
[360714148,1746948632739,-2041.34790272,0.00019178,2]
[360714149,1746948632749,-2041.34790272,0.00019178,2]
[360714150,1746948632758,-2041.34790272,0.00019178,2]
[360714151,1746948632767,-2041.34790272,0.00019178,2]
[360714152,1746948632777,-2041.34790272,0.00019178,2]
[360714153,1746948632787,-2041.34790272,0.00019178,2]
[360714154,1746948632796,-2041.34790272,0.00019178,2]
[360714155,1746948632809,-2024.04834423,0.00019178,2]
[360714156,1746948632818,-2024.04834423,0.00019178,2]
[360714157,1746948632828,-2024.04834423,0.00019178,2]
[360714158,1746948632838,-2024.04834423,0.00019178,2]
[360714159,1746948632848,-2024.04834423,0.00019178,2]
[360714160,1746948632858,-2024.04834423,0.00019178,2]
[360714161,1746948632867,-2024.04834423,0.00019178,2]
[360714162,1746948632878,-2024.04834423,0.00019178,2]
[360714163,1746948632889,-2024.04834423,0.00019178,2]
[360714164,1746948632899,-2024.04834423,0.00019178,2]
[360714165,1746948632908,-2024.04834423,0.00019178,2]
[360714166,1746948632918,-2024.04834423,0.00019178,2]
[360714167,1746948632927,-2024.04834423,0.00019178,2]
[360714168,1746948632937,-2024.04834423,0.00019178,2]
[360714169,1746948632946,-2024.04834423,0.00019178,2]
[360714170,1746948632955,-2024.04834423,0.00019178,2]
[360714171,1746948632965,-2024.04834423,0.00019178,2]
[360714172,1746948632974,-2024.04834423,0.00019178,2]
[360714173,1746948632984,-2024.04834423,0.00019178,2]
[360714174,1746948632993,-2024.04834423,0.00019178,2]
[360714175,1746948633003,-2024.04834423,0.00019178,2]
[360714176,1746948633012,-2024.04834423,0.00019178,2]
[360714177,1746948633025,-2024.04834423,0.00019178,2]
[360714178,1746948633035,-2024.04834423,0.00019178,2]
[360714179,1746948633045,-2024.04834423,0.00019178,2]
[360714180,1746948633055,-2024.04834423,0.00019178,2]
[360714181,1746948633065,-2024.04834423,0.00019178,2]
[360714182,1746948633075,-2009.43021729,0.00019178,2]
[360714183,1746948633084,-2009.43021729,0.00019178,2]
[360714184,1746948633094,-2009.43021729,0.00019178,2]
[360714185,1746948633104,-2009.43021729,0.00019178,2]
[360714186,1746948633113,-2009.43021729,0.00019178,2]
[360714187,1746948633123,-2009.43021729,0.00019178,2]
[360714188,1746948633132,-2009.43021729,0.00019178,2]
[360714189,1746948633143,-2009.43021729,0.00019178,2]
[360714190,1746948633153,-2009.43021729,0.00019178,2]
[360714191,1746948633162,-2009.43021729,0.00019178,2]
[360714192,1746948633172,-2009.43021729,0.00019178,2]
[360714193,1746948633182,-2009.43021729,0.00019178,2]
[360714194,1746948633192,-2009.43021729,0.00019178,2]
[360714195,1746948633201,-2009.43021729,0.00019178,2]
[360714196,1746948633211,-2009.43021729,0.00019178,2]
[360714197,1746948633221,-2009.43021729,0.00019178,2]
[360714198,1746948633230,-2009.43021729,0.00019178,2]
[360714199,1746948633240,-2009.43021729,0.00019178,2]
[360714200,1746948633249,-2009.43021729,0.00019178,2]
[360714201,1746948633259,-2009.43021729,0.00019178,2]
[360714202,1746948633269,-2009.4302173,0.00019178,2]
[360714203,1746948633279,-2009.4302173,0.00019178,2]
[360714204,1746948633288,-2009.4302173,0.00019178,2]
[360714205,1746948633298,-2009.4302173,0.00019178,2]
[360714206,1746948633311,-2009.4302173,0.00019178,2]
[360714207,1746948633321,-2009.4302173,0.00019178,2]
[360714208,1746948633331,-2009.4302173,0.00019178,2]
[360714209,1746948633340,-2009.4302173,0.00019178,2]
[360714210,1746948633350,-2009.4302173,0.00019178,2]
[360714211,1746948633359,-2009.43021726,0.00019178,2]
[360714212,1746948633369,-175.83,0.00019178,2]
[360714213,1746948633378,-256.71,0.00019178,2]
[360714214,1746948633390,-1200.0,0.000192,7]
[360714215,1746948633400,-209.48,0.0001925,2]
[360714216,1746948633410,-152.16,0.00019252,2]
[360714217,1746948633420,-400.0,0.00019259,2]
[360714218,1746948633430,-400.0,0.00019259,2]
[360714219,1746948633440,-498.96,0.00019259,2]
[360714220,1746948633450,-400.0,0.00019259,2]
[360714221,1746948633461,-400.0,0.00019259,2]
[360714222,1746948633471,-400.0,0.00019259,2]
[360714223,1746948633481,-400.0,0.00019259,2]
[360714224,1746948633490,-400.0,0.00019259,2]
[360714225,1746948633500,-400.0,0.00019259,2]
[360714226,1746948633510,-400.0,0.00019259,2]
[360714227,1746948633519,-400.0,0.00019259,2]
[360714228,1746948633529,-324.47962569,0.00019259,2]
[360714229,1746948633538,-400.0,0.00019259,2]
[360714230,1746948633548,-400.0,0.00019259,2]
[360714231,1746948633558,-400.0,0.00019259,2]
[360714232,1746948633571,-400.0,0.00019259,2]
[360714233,1746948633581,-462.78,0.00019259,2]
[360714234,1746948633591,-527.22,0.00019259,2]
[360714235,1746948633601,-400.0,0.00019259,2]
[360714236,1746948633611,-400.0,0.00019259,2]
[360714237,1746948633621,-400.0,0.00019259,2]
[360714238,1746948633630,-400.0,0.00019259,2]
[360714239,1746948633640,-400.0,0.00019259,2]
[360714240,1746948633650,-567.38,0.00019259,2]
[360714241,1746948633661,-400.0,0.00019259,2]
[360714242,1746948633670,-3987.460809,0.00019259,2]
[360714243,1746948633680,-320.80238843,0.00019259,2]
[360714244,1746948633690,-400.0,0.00019259,2]
[360714245,1746948633699,-400.0,0.00019259,2]
[360714246,1746948633708,-400.0,0.00019259,2]
[360714247,1746948633718,-400.0,0.00019259,2]
[360714248,1746948633729,-500.0,0.00019259,2]
[360714249,1746948633738,-400.0,0.00019259,2]
[360714250,1746948633747,-400.0,0.00019259,2]
[360714251,1746948633756,-400.0,0.00019259,2]
[360714252,1746948633766,-2792.629378,0.00019259,2]
[360714253,1746948633776,-400.0,0.00019259,2]
[360714254,1746948633786,-400.0,0.00019259,2]
[360714255,1746948633796,-453.88,0.00019259,2]
[360714256,1746948633809,-180.022034,0.00019259,2]
[360714257,1746948633819,-400.0,0.00019259,2]
[360714258,1746948633828,-400.0,0.00019259,2]
[360714259,1746948633840,-400.0,0.00019259,2]
[360714260,1746948633850,-400.0,0.00019259,2]
[360714261,1746948633859,-747.69,0.0001926,2]
[360714262,1746948633869,-400.0,0.0001926,2]
[360714263,1746948633878,-400.0,0.0001926,2]
[360714264,1746948633889,-400.0,0.0001926,2]
[360714265,1746948633898,-400.0,0.0001926,2]
[360714266,1746948633908,-227.119868,0.0001926,2]
[360714267,1746948633918,-400.0,0.0001926,2]
[360714268,1746948633928,-400.0,0.0001926,2]
[360714269,1746948633937,-400.0,0.0001926,2]
[360714270,1746948633947,-400.0,0.0001926,2]
[360714271,1746948633956,-400.0,0.0001926,2]
[360714272,1746948633966,-400.0,0.0001926,2]
[360714273,1746948633976,-162.83,0.0001926,2]
[360714274,1746948633985,-400.0,0.0001926,2]
[360714275,1746948633995,-400.0,0.0001926,2]
[360714276,1746948634004,-400.0,0.0001926,2]
[360714277,1746948634014,-400.0,0.0001926,2]
[360714278,1746948634023,-400.0,0.0001926,2]
[360714279,1746948634033,-400.0,0.0001926,2]
[360714280,1746948634042,-400.0,0.0001926,2]
[360714281,1746948634052,-400.0,0.0001926,2]
[360714282,1746948634062,-400.0,0.0001926,2]
[360714283,1746948634071,-400.0,0.0001926,2]
[360714284,1746948634081,-400.0,0.0001926,2]
[360714285,1746948634091,-400.0,0.0001926,2]
[360714286,1746948634102,-400.0,0.0001926,2]
[360714287,1746948634117,-538.85,0.0001926,2]
[360714288,1746948634130,-400.0,0.0001926,2]
[360714289,1746948634140,-400.0,0.0001926,2]
[360714290,1746948634149,-400.0,0.0001926,2]
[360714291,1746948634159,-400.0,0.0001926,2]
[360714292,1746948634169,-400.0,0.0001926,2]
[360714293,1746948634179,-9.31365597,0.0001926,2]
[360714294,1746948634197,-390.68634403,0.0001926,2]
[360714295,1746948634207,-301.86638517,0.0001926,2]
[360714296,1746948634218,-98.13361483,0.0001926,2]
[360714297,1746948634228,-400.0,0.0001926,2]
[360714298,1746948634239,-400.0,0.0001926,2]
[360714299,1746948634249,-400.0,0.0001926,2]
[360714300,1746948634258,-400.0,0.0001926,2]
[360714301,1746948634268,-528.02,0.0001926,2]
[360714302,1746948634278,-152.5237177,0.0001926,2]
[360714303,1746948634290,-247.4762823,0.0001926,2]
[360714304,1746948634299,-400.0,0.0001926,2]
[360714305,1746948634309,-400.0,0.0001926,2]
[360714306,1746948634318,-400.0,0.0001926,2]
[360714307,1746948634328,-400.0,0.0001926,2]
[360714308,1746948634338,-400.0,0.0001926,2]
[360714309,1746948634348,-26.60989945,0.0001926,2]
[360714310,1746948634360,-373.39010055,0.0001926,2]
[360714311,1746948634371,-400.0,0.0001926,2]
[360714312,1746948634381,-400.0,0.0001926,2]
[360714313,1746948634392,-401.79,0.0001926,2]
[360714314,1746948634402,-1034.31582384,0.0001926,2]
[360714315,1746948634414,-2892.85158688,0.0001926,2]
[360714316,1746948637292,250.0,0.00017,2]
[360714319,1746948637963,-400.0,0.00019259,2]
[360714320,1746948637974,-76.33,0.00019259,2]
[360714325,1746948638460,-323.67,0.00019259,2]
[360714326,1746948638470,-517.3,0.00019259,2]
[360714327,1746948638480,-400.0,0.00019259,2]
[360714328,1746948638491,-400.0,0.00019259,2]
[360714329,1746948638500,-3475.32258928,0.0001926,2]
[360714330,1746948638511,-455.95440246,0.0001926,2]
[360714331,1746948638526,-44.04559754,0.0001926,2]
[360714332,1746948638535,-400.0,0.0001926,2]
[360714333,1746948638545,-400.0,0.0001926,2]
[360714334,1746948638555,-959.15292367,0.00019261,2]
[360714335,1746948638564,-1500.0,0.000193,7]
[360714336,1746948638574,-959.15292367,0.00019352,2]
[360714337,1746948638583,-300.0,0.000194,7]
[360714338,1746948638593,-959.15292367,0.00019443,2]
[360714339,1746948638795,-2158.07274696,0.00019479,2]
[360714340,1746948638805,-300.0,0.000195,7]
[360714341,1746948638818,-712.40279633,0.000195,2]
[360714342,1746948638827,-959.15292367,0.00019535,2]
[360714343,1746948638837,-400.0,0.0001956,2]
[360714344,1746948638846,-400.0,0.0001956,2]
[360714345,1746948638858,-400.0,0.0001956,2]
[360714346,1746948638867,-400.0,0.0001956,2]
[360714347,1746948638876,-217.76211495,0.0001956,2]
[360714348,1746948638887,-400.0,0.0001956,2]
[360714349,1746948638898,-400.0,0.0001956,2]
[360714350,1746948638907,-400.0,0.0001956,2]
[360714351,1746948638916,-400.0,0.0001956,2]
[360714352,1746948638925,-400.0,0.0001956,2]
[360714353,1746948638934,-400.0,0.0001956,2]
[360714354,1746948638943,-400.0,0.0001956,2]
[360714355,1746948638953,-400.0,0.0001956,2]
[360714356,1746948638962,-400.0,0.0001956,2]
[360714357,1746948638971,-400.0,0.0001956,2]
[360714358,1746948638980,-400.0,0.0001956,2]
[360714359,1746948638989,-400.0,0.0001956,2]
[360714360,1746948638998,-400.0,0.0001956,2]
[360714361,1746948639008,-2713.72,0.0001956,2]
[360714362,1746948639017,-400.0,0.0001956,2]
[360714363,1746948639026,-400.0,0.0001956,2]
[360714364,1746948639035,-400.0,0.0001956,2]
[360714365,1746948639044,-400.0,0.0001956,2]
[360714366,1746948639054,-384.91,0.0001956,2]
[360714367,1746948639063,-400.0,0.0001956,2]
[360714368,1746948639072,-941.23,0.0001956,2]
[360714369,1746948639081,-400.0,0.0001956,2]
[360714370,1746948639091,-1058.19,0.0001956,2]
[360714371,1746948639100,-400.0,0.0001956,2]
[360714372,1746948639109,-1155.31,0.0001956,2]
[360714373,1746948639118,-400.0,0.0001956,2]
[360714374,1746948639127,-400.0,0.0001956,2]
[360714375,1746948639136,-400.0,0.0001956,2]
[360714376,1746948639145,-300.0,0.000196,7]
[360714377,1746948639155,-8786.33587354,0.00019621,2]
[360714378,1746948639166,-1284.41622047,0.00019621,2]
[360714379,1746948639177,-1834.57867756,0.00019621,2]
[360714380,1746948639190,-1587.27530766,0.00019621,2]
[360714381,1746948639199,-959.15292367,0.00019626,2]
[360714382,1746948639208,-151.0,0.00019651,2]
[360714383,1746948639217,-300.0,0.000197,7]
[360714384,1746948639233,-5309.57750991,0.000197,2]
[360714385,1746948639242,-4969.29542906,0.00019709,2]
[360714386,1746948639251,-959.15292367,0.00019717,2]
[360714387,1746948639261,-4969.29542906,0.0001973,2]
[360714388,1746948639271,-4969.29542906,0.00019751,2]
[360714389,1746948639280,-2500.0,0.0001976,2]
[360714390,1746948639289,-4969.29542906,0.00019773,2]
[360714391,1746948639298,-4969.29542906,0.00019794,2]
[360714392,1746948639307,-995.8541,0.00019799,2]
[360714393,1746948639317,-300.0,0.000198,7]
[360714394,1746948639327,-4858.95788525,0.000198,2]
[360714395,1746948639347,-2101.14,0.000198,2]
[360714396,1746948639358,-543.73177589,0.000198,2]
[360714397,1746948639367,-196.36822421,0.00019808,2]
[360714399,1746948639979,184.92,0.00018768,2]
[360714400,1746948640095,-300.0,0.00019,2]
[360714401,1746948640105,-500.0,0.00019078,2]
[360714402,1746948640114,-634.82293,0.00019163,2]
[360714403,1746948640124,-400.0,0.00019259,2]
[360714404,1746948640135,-150.55766303,0.00019259,2]
[360714405,1746948640149,-249.44233697,0.00019259,2]
[360714406,1746948640158,-203.63177579,0.00019808,2]
[360714407,1746948640167,-400.0,0.00019808,2]
[360714408,1746948640179,-400.0,0.00019808,2]
[360714409,1746948640190,-400.0,0.00019808,2]
[360714410,1746948640199,-400.0,0.00019808,2]
[360714411,1746948640210,-400.0,0.00019808,2]
[360714412,1746948640219,-400.0,0.00019808,2]
[360714413,1746948640228,-400.0,0.00019808,2]
[360714414,1746948640238,-400.0,0.00019808,2]
[360714415,1746948640247,-400.0,0.00019808,2]
[360714416,1746948640256,-400.0,0.00019808,2]
[360714417,1746948640265,-400.0,0.00019808,2]
[360714418,1746948640275,-400.0,0.00019808,2]
[360714419,1746948640284,-358.12715013,0.00019808,2]
[360714420,1746948640294,-400.0,0.00019808,2]
[360714421,1746948640304,-228.36853688,0.00019808,2]
[360714422,1746948640314,-188.60835373,0.00019808,2]
[360714423,1746948640324,-400.0,0.00019808,2]
[360714424,1746948640333,-400.0,0.00019808,2]
[360714425,1746948640344,-400.0,0.00019808,2]
[360714426,1746948640354,-300.55659597,0.00019808,2]
[360714427,1746948640388,-99.44340403,0.00019808,2]
[360714428,1746948640399,-536.27,0.00019808,2]
[360714429,1746948640409,-343.44831113,0.00019808,2]
[360714430,1746948641103,-56.55168887,0.00019808,2]
[360714431,1746948641112,-185.61847319,0.00019808,2]
[360714432,1746948641121,-400.0,0.00019808,2]
[360714433,1746948641131,-400.0,0.00019808,2]
[360714434,1746948641140,-400.0,0.00019808,2]
[360714435,1746948641150,-323.79543151,0.00019808,2]
[360714436,1746948641160,-450.0,0.00019808,2]
[360714437,1746948641169,-400.0,0.00019808,2]
[360714438,1746948641179,-462.37002416,0.00019808,2]
[360714439,1746948641188,-400.0,0.00019808,2]
[360714440,1746948641197,-400.0,0.00019808,2]
[360714441,1746948641207,-400.0,0.00019808,2]
[360714442,1746948641216,-400.0,0.00019808,2]
[360714443,1746948641225,-400.0,0.00019808,2]
[360714444,1746948641235,-400.0,0.00019808,2]
[360714445,1746948641246,-400.0,0.00019808,2]
[360714446,1746948641255,-482.74,0.00019808,2]
[360714447,1746948641265,-400.0,0.00019808,2]
[360714448,1746948641274,-400.0,0.00019808,2]
[360714449,1746948641283,-402.35,0.00019808,2]
[360714450,1746948641292,-400.0,0.00019808,2]
[360714451,1746948641302,-400.0,0.00019808,2]
[360714452,1746948641312,-400.0,0.00019808,2]
[360714453,1746948641322,-400.0,0.00019808,2]
[360714454,1746948641331,-497.05,0.00019808,2]
[360714455,1746948641340,-400.0,0.00019808,2]
[360714456,1746948641350,-537.72,0.00019808,2]
[360714457,1746948641359,-400.0,0.00019808,2]
[360714458,1746948641368,-400.0,0.00019808,2]
[360714459,1746948641377,-400.0,0.00019808,2]
[360714460,1746948641387,-400.0,0.00019808,2]
[360714461,1746948641397,-498.63,0.00019808,2]
[360714462,1746948641406,-400.0,0.00019808,2]
[360714463,1746948641415,-400.0,0.00019808,2]
[360714464,1746948641425,-466.77,0.00019808,2]
[360714465,1746948641435,-477.44,0.00019808,2]
[360714466,1746948641446,-400.0,0.00019808,2]
[360714467,1746948641455,-400.0,0.00019808,2]
[360714468,1746948641464,-400.0,0.00019808,2]
[360714469,1746948641473,-400.0,0.00019808,2]
[360714470,1746948641483,-400.0,0.00019808,2]
[360714471,1746948641492,-400.0,0.00019808,2]
[360714472,1746948641503,-400.0,0.00019808,2]
[360714473,1746948641514,-400.0,0.00019808,2]
[360714474,1746948641524,-400.0,0.00019808,2]
[360714475,1746948641534,-196.37928069,0.00019808,2]
[360714476,1746948641544,-400.0,0.00019808,2]